[Event "Oberliga Wuerttemberg 2023-24"]
[Site "Wuerttemberg"]
[Date "2024.04.14"]
[Round "9.31"]
[White "Buechele, Johannes"]
[Black "Koellner, Christof"]
[Result "0-1"]
[ECO "E61"]
[WhiteElo "1912"]
[BlackElo "2015"]
[Annotator "NA RC"]
[PlyCount "88"]
[EventDate "2024.03.14"]
[EventType "team-tourn"]
[EventCountry "GER"]
[SourceTitle "playchess.com"]
[Source "ChessBase"]
[SourceQuality "1"]
[TimeControl "40/5400+30:1800+30"]

1. d4 {[%emt 0:00:05]} d6 {[%emt 0:00:24]} 2. Nf3 {[%emt 0:00:12]} Nf6 {[%emt 0:00:07]} 3. c4 {[%emt 0:00:11]} g6 {[%emt 0:00:13]} 4. Nc3 {[%emt 0:00:11]} Bf5 {[%emt 0:00:29]} 5. d5 {[%emt 0:00:29]} Bg7 {[%emt 0:00:39]} 6. Nd4 {[%emt 0:00:38]} Bd7 {[%emt 0:00:18]} 7. e4 {[%emt 0:01:00]} O-O {[%emt 0:00:54]} 8. Be2 {[%emt 0:06:18]} Na6 {[%emt 0:01:18]} 9. Be3 {[%emt 0:03:02]} Nc5 {[%emt 0:01:10]} 10. f3 {[%emt 0:01:58]} a5 {[%emt 0:00:34]} 11. O-O {[%emt 0:00:58]} e5 {[%emt 0:03:08]} 12. dxe6 {[%emt 0:00:42]} fxe6 {[%emt 0:04:39]} 13. Nb3 {[%emt 0:11:00]} Nxb3 {[%emt 0:06:31]} 14. Qxb3 {[%emt 0:02:15]} Bc6 {[%emt 0:06:42]} 15. Rad1 {[%emt 0:05:29]} Qe7 {[%emt 0:00:45]} 16. Rfe1 {[%emt 0:02:16]} Nh5 {[%emt 0:03:04]} 17. Bf1 {[%emt 0:04:04]} Be5 {[%emt 0:04:38]} 18. Bd4 {[%emt 0:09:18]} Bxd4+ {[%emt 0:08:00]} 19. Rxd4 {[%emt 0:00:49]} Qg5 {[%emt 0:01:01]} 20. Ne2 {[%emt 0:11:32]} a4 {[%emt 0:08:36]} 21. Qa3 {[%emt 0:06:27]} b6 {[%emt 0:09:50]} 22. g3 {[%emt 0:05:40]} Qc5 {[%emt 0:13:30]} 23. Qxc5 {[%emt 0:00:59]} bxc5 {[%emt 0:00:02]} 24. Rd3 {[%emt 0:01:17]} Rab8 {[%emt 0:00:59]} 25. b3 {[%emt 0:01:35]} axb3 {[%emt 0:01:11]} 26. axb3 {[%emt 0:00:54]} Ra8 {[%emt 0:04:12]} 27. Nc1 {[%emt 0:02:39]} e5 {[%emt 0:00:48]} 28. Bg2 {[%emt 0:08:43]} Ra1 {[%emt 0:03:47]} 29. Rc3 {[%emt 0:01:11]} Ng7 {[%emt 0:00:47]} 30. Nd3 {[%emt 0:02:03]} Rxe1+ {[%emt 0:00:22]} 31. Nxe1 {[%emt 0:00:08]} Ne6 {[%emt 0:01:05]} 32. Nc2 {[%emt 0:00:10]} Rb8 {[%emt 0:02:11]} 33. Bh3 {[%emt 0:01:43]} Nd4 {[%emt 0:04:49]} 34. Nxd4 {[%emt 0:00:19]} cxd4 {[%emt 0:00:46]} 35. Rd3 {[%emt 0:00:15]} Kf7 {[%emt 0:00:45]} 36. Kf2 {[%emt 0:00:43]} Ke7 {[%emt 0:00:40]} 37. Bg2 {[%emt 0:01:17]} g5 {[%emt 0:01:19]} 38. Ke2 {[%emt 0:03:03]} h5 {[%emt 0:01:49]} 39. Kd2 {[%emt 0:01:31]} Ra8 {[%emt 0:02:29]} 40. Kc1 {[%emt 0:01:54]} Ra1+ {[%emt 0:00:54]} 41. Kb2 {[%emt 0:32:18]} Re1 {[%emt 0:30:38]} 42. Rd2 {[%emt 0:00:00]} g4 {[%emt 0:00:00]} 43. f4 {[%emt 0:00:00]} exf4 {[%emt 0:00:00]} 44. gxf4 {[%emt 0:00:00]} Bxe4 {[%emt 0:00:00]} 0-1

[Event "Oberliga Wuerttemberg 2023-24"]
[Site "Wuerttemberg"]
[Date "2024.04.14"]
[Round "9.32"]
[White "Brenner, Markus"]
[Black "Deiringer, Julius"]
[Result "1/2-1/2"]
[ECO "C54"]
[WhiteElo "2106"]
[BlackElo "1865"]
[Annotator "RC"]
[PlyCount "25"]
[EventDate "2024.03.14"]
[EventType "team-tourn"]
[EventCountry "GER"]
[SourceTitle "playchess.com"]
[Source "ChessBase"]
[SourceQuality "1"]
[TimeControl "40/5400+30:1800+30"]

1. e4 {[%emt 0:00:03]} e5 {[%emt 0:00:06]} 2. Nf3 {[%emt 0:00:13]} Nc6 {[%emt 0:00:09]} 3. d4 {[%emt 0:00:18]} exd4 {[%emt 0:00:10]} 4. Bc4 {[%emt 0:00:27]} Bc5 {[%emt 0:00:18]} 5. c3 {[%emt 0:00:44]} Nf6 {[%emt 0:00:36]} 6. e5 {[%emt 0:01:56]} d5 {[%emt 0:01:22]} 7. Be2 {[%emt 0:01:11]} Ne4 {[%emt 0:01:39]} 8. cxd4 {[%emt 0:00:55]} Bb6 {[%emt 0:04:03]} 9. O-O {[%emt 0:08:04]} O-O {[%emt 0:04:37]} 10. Nc3 {[%emt 0:01:50]} Be6 {[%emt 0:05:36]} 11. Be3 {[%emt 0:03:23]} f6 {[%emt 0:03:22]} 12. exf6 {[%emt 0:04:13]} Qxf6 {[%emt 0:01:41]} 13. Na4 {[%emt 0:04:28]} 1/2-1/2

[Event "Oberliga Wuerttemberg 2023-24"]
[Site "Wuerttemberg"]
[Date "2024.04.14"]
[Round "9.33"]
[White "Velicka, Petr"]
[Black "Altenhof, Martin"]
[Result "1-0"]
[ECO "E95"]
[WhiteElo "2369"]
[BlackElo "2143"]
[Annotator "RC"]
[PlyCount "155"]
[EventDate "2024.03.14"]
[EventType "team-tourn"]
[EventCountry "GER"]
[SourceTitle "playchess.com"]
[Source "ChessBase"]
[SourceQuality "1"]
[TimeControl "40/5400+30:1800+30"]

1. Nf3 {[%emt 0:00:06]} Nf6 {[%emt 0:00:08]} 2. c4 {[%emt 0:00:13]} g6 {[%emt 0:00:02]} 3. Nc3 {[%emt 0:00:10]} Bg7 {[%emt 0:00:51]} 4. e4 {[%emt 0:00:11]} d6 {[%emt 0:00:04]} 5. d4 {[%emt 0:00:06]} O-O {[%emt 0:00:15]} 6. Be2 {[%emt 0:00:05]} Nbd7 {[%emt 0:00:06]} 7. O-O {[%emt 0:00:15]} e5 {[%emt 0:00:03]} 8. Re1 {[%emt 0:00:32]} c6 {[%emt 0:03:16]} 9. Bf1 {[%emt 0:06:35]} Nh5 {[%emt 0:11:14]} 10. Be3 {[%emt 0:03:55]} Bf6 {[%emt 0:08:55]} 11. dxe5 {[%emt 0:07:35]} dxe5 {[%emt 0:00:22]} 12. c5 {[%emt 0:00:09]} Qe7 {[%emt 0:20:40]} 13. Qc1 {[%emt 0:12:24]} Rd8 {[%emt 0:06:31]} 14. Rd1 {[%emt 0:02:14]} Nf8 {[%emt 0:04:08]} 15. Rxd8 {[%emt 0:00:31]} Qxd8 {[%emt 0:00:03]} 16. Qc2 {[%emt 0:00:24]} Qe7 {[%emt 0:02:40]} 17. Bc4 {[%emt 0:15:45]} Be6 {[%emt 0:00:40]} 18. Bb3 {[%emt 0:16:17]} Ng7 {[%emt 0:01:54]} 19. h3 {[%emt 0:02:11]} Bxb3 {[%emt 0:01:51]} 20. axb3 {[%emt 0:02:44]} a6 {[%emt 0:03:54]} 21. Rd1 {[%emt 0:02:43]} Nfe6 {[%emt 0:01:54]} 22. Ne2 {[%emt 0:04:56]} Rd8 {[%emt 0:03:56]} 23. b4 {[%emt 0:03:28]} Nc7 {[%emt 0:03:05]} 24. Rxd8+ {[%emt 0:01:32]} Qxd8 {[%emt 0:00:06]} 25. Qd2 {[%emt 0:00:06]} Qe7 {[%emt 0:04:23]} 26. Nc1 {[%emt 0:05:39]} Nge8 {[%emt 0:06:09]} 27. Nb3 {[%emt 0:00:56]} Nb5 {[%emt 0:02:00]} 28. Na5 {[%emt 0:00:39]} Qc7 {[%emt 0:04:40]} 29. Nc4 {[%emt 0:01:39]} Bg7 {[%emt 0:02:37]} 30. Qd3 {[%emt 0:02:03]} Kf8 {[%emt 0:03:08]} 31. Na5 {[%emt 0:05:05]} Nf6 {[%emt 0:01:26]} 32. Bg5 {[%emt 0:00:56]} Nd7 {[%emt 0:00:48]} 33. Be3 {[%emt 0:00:51]} Ke7 {[%emt 0:01:53]} 34. Nc4 {[%emt 0:00:16]} Kf8 {[%emt 0:00:43]} 35. Kf1 {[%emt 0:01:32]} Kg8 {[%emt 0:00:30]} 36. Bg5 {[%emt 0:01:00]} Bf8 {[%emt 0:01:52]} 37. Kg1 {[%emt 0:01:25]} h6 {[%emt 0:00:15]} 38. Be3 {[%emt 0:00:10]} Bg7 {[%emt 0:00:11]} 39. Na5 {[%emt 0:01:33]} Bf8 {[%emt 0:00:19]} 40. Qd2 {[%emt 0:00:12]} Kh7 {[%emt 0:00:29]} 41. Nc4 {[%emt 0:30:53]} Bg7 {[%emt 0:30:41]} 42. Qd3 {[%emt 0:00:00]} Bf8 {[%emt 0:00:00]} 43. Nfd2 {[%emt 0:00:00]} Be7 {[%emt 0:00:00]} 44. Nb3 {[%emt 0:00:00]} Bg5 {[%emt 0:00:00]} 45. Bxg5 {[%emt 0:00:00]} hxg5 {[%emt 0:00:00]} 46. Qd2 {[%emt 0:00:00]} f6 {[%emt 0:00:00]} 47. Nd6 {[%emt 0:00:00]} Nxd6 {[%emt 0:00:00]} 48. cxd6 {[%emt 0:00:00]} Qc8 {[%emt 0:00:00]} 49. Nc5 {[%emt 0:00:00]} b6 {[%emt 0:00:00]} 50. Ne6 {[%emt 0:00:00]} c5 {[%emt 0:00:00]} 51. bxc5 {[%emt 0:00:00]} bxc5 {[%emt 0:00:00]} 52. Qa5 {[%emt 0:00:00]} c4 {[%emt 0:00:00]} 53. Qc7 {[%emt 0:00:00]} Qxc7 {[%emt 0:00:00]} 54. dxc7 {[%emt 0:00:00]} Nb6 {[%emt 0:00:00]} 55. Nc5 {[%emt 0:00:00]} a5 {[%emt 0:01:36]} 56. Nd7 {[%emt 0:00:00]} Nc8 {[%emt 0:00:08]} 57. Nxf6+ {[%emt 0:00:00]} Kg7 {[%emt 0:00:17]} 58. Nd5 {[%emt 0:00:00]} Kf7 {[%emt 0:00:55]} 59. Ne3 {[%emt 0:00:00]} c3 {[%emt 0:00:19]} 60. bxc3 {[%emt 0:00:00]} a4 {[%emt 0:00:32]} 61. Nc4 {[%emt 0:00:00]} Ke6 {[%emt 0:01:26]} 62. Kf1 {[%emt 0:00:00]} Kd7 {[%emt 0:00:27]} 63. Ke2 {[%emt 0:00:00]} Kxc7 {[%emt 0:00:22]} 64. Kd3 {[%emt 0:00:00]} Ne7 {[%emt 0:01:58]} 65. Nxe5 {[%emt 0:00:00]} Kd6 {[%emt 0:01:16]} 66. Nf7+ {[%emt 0:00:00]} Kc5 {[%emt 0:00:20]} 67. Nxg5 {[%emt 0:00:00]} a3 {[%emt 0:00:11]} 68. Kc2 {[%emt 0:00:00]} a2 {[%emt 0:01:40]} 69. Kb2 {[%emt 0:00:00]} Kc4 {[%emt 0:00:11]} 70. g4 {[%emt 0:02:04]} a1=Q+ {[%emt 0:01:03]} 71. Kxa1 {[%emt 0:00:09]} Kxc3 {[%emt 0:00:00]} 72. f4 {[%emt 0:01:50]} Kd4 {[%emt 0:00:16]} 73. Kb2 {[%emt 0:08:47]} Ke3 {[%emt 0:00:52]} 74. f5 {[%emt 0:00:10]} gxf5 {[%emt 0:00:11]} 75. exf5 {[%emt 0:00:17]} Kf4 {[%emt 0:00:29]} 76. Ne6+ {[%emt 0:00:20]} Kg3 {[%emt 0:00:19]} 77. f6 {[%emt 0:00:07]} Ng6 {[%emt 0:00:21]} 78. f7 {[%emt 0:00:06]} 1-0

[Event "Oberliga Wuerttemberg 2023-24"]
[Site "Wuerttemberg"]
[Date "2024.04.14"]
[Round "9.34"]
[White "Guess, Cornel-Andreas"]
[Black "Jurek, Josef"]
[Result "1/2-1/2"]
[ECO "E25"]
[WhiteElo "1963"]
[BlackElo "2205"]
[Annotator "TA"]
[PlyCount "86"]
[EventDate "2024.03.14"]
[EventType "team-tourn"]
[EventCountry "GER"]
[SourceTitle "playchess.com"]
[Source "ChessBase"]
[SourceQuality "1"]
[TimeControl "40/5400+30:1800+30"]

{[%evp 17,86,21,29,36,35,38,104,102,125,86,82,66,80,43,68,54,70,77,75,76,48,16,18,10,12,14,16,2,2,2,10,0,0,0,30,32,32,32,40,34,37,25,40,14,42,0,47,8,26,8,8,0,41,41,46,47,53,0,45,0,43,8,47,47,47,36,47,0,39,0,35]} 1. d4 {[%emt 0:00:05]} Nf6 {[%emt 0:00:23]} 2. c4 {[%emt 0:00:20]} e6 {[%emt 0:00:33]} 3. Nc3 {[%emt 0:00:22]} Bb4 {[%emt 0:00:19]} 4. a3 {[%emt 0:00:54]} Bxc3+ {[%emt 0:00:13]} 5. bxc3 {[%emt 0:00:06]} c5 {[%emt 0:01:20]} 6. f3 {[%emt 0:00:57]} d5 {[%emt 0:05:02]} 7. cxd5 {[%emt 0:00:56]} Nxd5 {[%emt 0:01:44]} 8. dxc5 {[%emt 0:01:04]} Qa5 {[%emt 0:01:09]} 9. e4 {[%emt 0:00:56]} Ne7 {[%emt 0:02:47][%cal Oe8g8]} ({But not} 9... Nxc3 10. Qd2 Nc6 11. Bb2 $16) 10. Be3 {[%emt 0:00:39]} Na6 {[%emt 0:07:19]} 11. Bxa6 {[%emt 0:03:55]} bxa6 {[%emt 0:05:25]} (11... Qxa6 $14 12. Qd6 Qxd6 13. cxd6 Nc6) 12. Ne2 $16 {[%emt 0:03:19] White is better.} O-O {[%emt 0:03:59]} 13. O-O {[%emt 0:07:29]} Rd8 {[%emt 0:01:31] Inhibits Qd6.} 14. Qb3 {[%emt 0:02:04]} Bd7 {[%emt 0:04:34] Black is weak on the dark squares} 15. Qb4 {[%emt 0:11:20]} Qc7 {[%emt 0:01:04]} 16. c4 {[%emt 0:00:43]} e5 {[%emt 0:07:20]} 17. Rfd1 {[%emt 0:06:47]} Rab8 {[%emt 0:03:41]} 18. Qe1 {[%emt 0:01:15] White is more active.} (18. Qc3 $5) 18... Be6 {[%emt 0:04:17]} 19. Rxd8+ {[%emt 0:13:37]} Rxd8 {[%emt 0:01:37]} 20. Rd1 {[%emt 0:00:28]} Bxc4 {[%emt 0:05:36]} 21. Kf2 {[%emt 0:00:19]} Nc6 {[%emt 0:03:41]} 22. Rxd8+ {[%emt 0:00:46]} Qxd8 {[%emt 0:01:43]} 23. Qc3 {[%emt 0:00:58]} Bb5 {[%emt 0:02:50]} 24. Qd2 {[%emt 0:01:18]} Qxd2 {[%emt 0:06:43]} 25. Bxd2 {[%emt 0:00:06]} Bxe2 {[%emt 0:03:12]} 26. Kxe2 $11 {[%emt 0:00:13][%mdl 4096] Endgame. KB-KN} Kf8 {[%emt 0:01:50]} 27. Kd3 {[%emt 0:06:50]} Ke7 {[%emt 0:00:54]} 28. Kc4 {[%emt 0:00:20]} Ke6 {[%emt 0:01:20]} 29. Be3 {[%emt 0:05:37]} f6 {[%emt 0:03:09]} 30. Bf2 {[%emt 0:03:32]} Kd7 {[%emt 0:02:11]} 31. Be3 {[%emt 0:01:30]} Ne7 {[%emt 0:00:46]} (31... Ke6 $11) 32. Kb4 {[%emt 0:01:21]} Kc6 {[%emt 0:01:09]} 33. Ka5 {[%emt 0:00:10]} Kb7 {[%emt 0:00:19]} 34. Kb4 {[%emt 0:00:05]} Nc6+ {[%emt 0:03:36]} 35. Kc4 {[%emt 0:00:06] Threatens to win with Kd5.} Kc7 {[%emt 0:00:12]} 36. Kd5 {[%emt 0:00:41] [#] Strongly threatening Ke6.} Kd7 {[%emt 0:00:10]} 37. Kc4 {[%emt 0:00:10]} ({White should try} 37. h4 $14) 37... Ke6 {[%emt 0:01:31]} 38. Bf2 {[%emt 0:00:51]} h5 {[%emt 0:00:24]} 39. g3 {[%emt 0:02:28]} g6 {[%emt 0:01:35]} 40. Be3 {[%emt 0:01:19]} Na5+ {[%emt 0:03:25]} 41. Kb4 {[%emt 0:33:19]} Nc6+ {[%emt 0:30:23]} 42. Kc4 {[%emt 0:00:04]} Na5+ {[%emt 0:04:01]} 43. Kb4 {[%emt 0:00:05]} Nc6+ {[%emt 0:00:08] Weighted Error Value: White=0.16 (very precise) /Black=0.14 (very precise) .  Mistake:       	White=1     	Black=2      Inaccurate:     	White=8     	Black=6      OK:         	White=9     	Black=12     Best:        	---       	Black=3} 1/2-1/2

[Event "Oberliga Wuerttemberg 2023-24"]
[Site "Wuerttemberg"]
[Date "2024.04.14"]
[Round "9.35"]
[White "Flajsman, Pavel"]
[Black "Einwiller, Bernd"]
[Result "1-0"]
[ECO "B07"]
[WhiteElo "2219"]
[BlackElo "2082"]
[Annotator "TA"]
[PlyCount "57"]
[EventDate "2024.03.14"]
[EventType "team-tourn"]
[EventCountry "GER"]
[SourceTitle "playchess.com"]
[Source "ChessBase"]
[SourceQuality "1"]
[TimeControl "40/5400+30:1800+30"]

{[%evp 9,57,8,20,16,16,12,20,16,20,18,45,12,39,20,28,29,42,6,28,7,4,5,6,7,66,76,118,106,124,117,129,131,169,124,291,215,353,296,556,544,551,534,568,553,655,661,743,661,833,798]} 1. d4 {[%emt 0:03:25]} Nf6 {[%emt 0:00:40]} 2. Nf3 {[%emt 0:00:19]} g6 {[%emt 0:00:17]} 3. Nbd2 {[%emt 0:00:50]} Bg7 {[%emt 0:01:04]} 4. e4 {[%emt 0:00:16]} d6 {[%emt 0:00:29]} 5. Bb5+ {[%emt 0:00:15]} c6 {[%emt 0:02:56]} 6. Bd3 {[%emt 0:00:24]} O-O {[%emt 0:01:36]} 7. O-O {[%emt 0:00:18]} Nbd7 {[%emt 0:00:48]} 8. a4 {[%emt 0:00:34] The position is equal.} Qc7 {[%emt 0:01:12]} 9. c3 {[%emt 0:11:00]} a5 {[%emt 0:04:06]} 10. Qc2 {[%emt 0:01:25]} e5 {[%emt 0:00:57]} 11. dxe5 {[%emt 0:00:13]} Nxe5 {[%emt 0:02:01]} 12. Nxe5 {[%emt 0:00:06]} dxe5 {[%emt 0:00:11]} 13. Re1 {[%emt 0:03:19]} (13. Nc4 $5) 13... Be6 {[%emt 0:03:41]} 14. Nc4 {[%emt 0:20:55]} Nd7 {[%emt 0:06:10]} 15. b4 {[%emt 0:05:42]} axb4 {[%emt 0:05:22]} 16. cxb4 {[%emt 0:00:22]} f5 {[%emt 0:02:50]} (16... Rfc8 $11) 17. Bb2 $14 {[%emt 0:04:08]} Rf7 {[%emt 0:08:59]} 18. a5 {[%emt 0:07:45][%cal Ba4a5,Ba5a6][%mdl 32]} Raf8 {[%emt 0:09:53]} 19. f3 {[%emt 0:11:24] White is more active.} f4 {[%emt 0:08:02]} 20. Kh1 {[%emt 0:00:09]} g5 {[%emt 0:03:08]} 21. a6 {[%emt 0:00:34]} b6 {[%emt 0:01:42] [#] This move loses the game for Black.} (21... bxa6 $16 {is a better defense.} 22. Rxa6 Re8) 22. Be2 {[%emt 0:02:17] Hoping for Red1.} h5 {[%emt 0:02:47]} (22... b5 {keeps fighting.} 23. Na5 Nb8) 23. Qd1 {[%emt 0:03:09] Threatens to win with Qd6.} Bf6 $2 {[%emt 0:03:08]} (23... Ra8 24. Qd6 Qxd6 25. Nxd6 Re7) 24. Qd6 $18 {[%emt 0:05:09] White is clearly winning.} Qxd6 {[%emt 0:00:25]} 25. Nxd6 {[%emt 0:00:02][%cal Bc4d6,Bd6b5,Bb5c7][%mdl 32]} Rg7 {[%emt 0:00:33]} 26. Rec1 {[%emt 0:08:00]} c5 {[%emt 0:01:56]} 27. Nb5 {[%emt 0:00:23]} Kf7 {[%emt 0:08:08]} 28. a7 {[%emt 0:01:31]} Rgg8 {[%emt 0:00:12]} 29. Nc7 {[%emt 0:00:21] Weighted Error Value: White=0.14 (very precise) /Black=0.57.  Loses game:     	---       	Black=1      Mistake:       	---       	Black=3      Inaccurate:     	White=2     	Black=3      OK:         	White=9     	Black=3      Best:        	White=1     	---} 1-0

[Event "Oberliga Wuerttemberg 2023-24"]
[Site "Wuerttemberg"]
[Date "2024.04.14"]
[Round "9.36"]
[White "Nagelsdiek, Michael"]
[Black "Bergner, Philipp"]
[Result "1/2-1/2"]
[ECO "A34"]
[WhiteElo "2035"]
[BlackElo "2139"]
[Annotator "TA"]
[PlyCount "142"]
[EventDate "2024.03.14"]
[EventType "team-tourn"]
[EventCountry "GER"]
[SourceTitle "playchess.com"]
[Source "ChessBase"]
[SourceQuality "1"]
[TimeControl "40/5400+30:1800+30"]

{[%evp 57,142,39,66,38,102,115,215,198,205,220,196,152,150,158,169,0,0,14,14,-55,-58,-147,-84,-73,-6,-16,88,0,0,0,0,0,168,51,50,53,98,106,87,90,133,114,177,100,102,67,182,189,189,191,191,189,248,233,201,160,236,229,286,286,331,331,325,304,307,279,276,264,279,159,258,8,8,8,8,8,8,8,8,8,8,8,8,8,8,0,0]} 1. c4 {[%emt 0:00:41]} Nf6 {[%emt 0:01:01]} 2. g3 {[%emt 0:00:00]} c5 {[%emt 0:00:23]} 3. Bg2 {[%emt 0:00:00]} Nc6 {[%emt 0:01:19]} 4. Nc3 {[%emt 0:00:32]} e6 {[%emt 0:00:54]} 5. e3 {[%emt 0:00:38]} d5 {[%emt 0:07:05]} 6. cxd5 {[%emt 0:00:32]} Nxd5 {[%emt 0:00:39]} 7. Nf3 {[%emt 0:01:42]} Be7 {[%emt 0:01:07]} 8. O-O {[%emt 0:01:04]} O-O {[%emt 0:01:10]} 9. a3 {[%emt 0:02:30] A34: Symmetrical English: 2 Nc3, lines with ...d5.} Nxc3 {[%emt 0:12:09]} 10. dxc3 {[%emt 0:05:10]} e5 {[%emt 0:02:53]} 11. e4 {[%emt 0:11:14]} Be6 $146 {[%emt 0:06:05]} ({Predecessor:} 11... Qc7 12. Qe2 Na5 13. Be3 Be6 14. Nd2 Rfd8 15. f4 exf4 16. gxf4 f6 17. Rad1 Bf7 18. Rde1 Rd7 19. Bh3 Rd6 {0-1 Basson,H-Rodriguez Perez,R DESC Liga 2016rd Gr.B email}) 12. Qc2 {[%emt 0:03:49]} Qc7 {[%emt 0:02:33]} 13. Be3 {[%emt 0:10:53]} Rfd8 {[%emt 0:07:04]} 14. Rfe1 {[%emt 0:00:50]} Na5 {[%emt 0:06:02]} 15. Bf1 {[%emt 0:11:48]} Rac8 {[%emt 0:11:18]} 16. Nd2 {[%emt 0:02:23]} c4 {[%emt 0:01:43]} 17. f4 {[%emt 0:03:33]} exf4 {[%emt 0:04:20]} 18. gxf4 {[%emt 0:03:27]} Bc5 {[%emt 0:00:50]} 19. e5 {[%emt 0:00:34]} Bxe3+ {[%emt 0:10:03]} 20. Rxe3 {[%emt 0:00:01]} Qb6 {[%emt 0:12:46]} 21. Rae1 {[%emt 0:03:47]} Bd5 {[%emt 0:04:43]} 22. f5 {[%emt 0:10:05]} Nc6 {[%emt 0:01:25]} 23. e6 {[%emt 0:09:37]} fxe6 {[%emt 0:00:05]} 24. Nxc4 {[%emt 0:00:43]} Qc5 {[%emt 0:01:00]} 25. b4 {[%emt 0:00:08]} Qe7 {[%emt 0:00:38]} 26. fxe6 {[%emt 0:03:04]} Qh4 {[%emt 0:00:41]} 27. Rh3 {[%emt 0:02:04]} Qg4+ {[%emt 0:00:04]} 28. Rg3 {[%emt 0:00:09]} Qf4 {[%emt 0:00:47]} 29. Qf2 {[%emt 0:05:08]} (29. e7 $16 Re8) 29... Qxf2+ $14 {[%emt 0:00:41]} 30. Kxf2 {[%emt 0:00:02]} Rf8+ {[%emt 0:00:39]} (30... Ne7 $14 31. Nd2 Ba2) 31. Kg1 $1 $16 {[%emt 0:00:01]} (31. Ke3 $6 Rcd8 $11 (31... Bxe6 32. Nd6 $14)) 31... Ne7 {[%emt 0:00:59]} (31... Rxf1+ $16 {was called for.} 32. Rxf1 Bxc4) 32. Nd6 $18 {[%emt 0:02:41]} Rcd8 {[%emt 0:01:07]} 33. Nf7 {[%emt 0:01:06]} Rc8 {[%emt 0:02:05]} 34. Re5 {[%emt 0:01:55]} Rc6 {[%emt 0:00:00]} 35. Bh3 {[%emt 0:01:42]} g6 {[%emt 0:00:19]} 36. Re2 $2 {[%emt 0:01:47]} (36. Rd3 $18) 36... Rfc8 $11 {[%emt 0:00:59]} 37. Ree3 {[%emt 0:00:32]} Ra6 {[%emt 0:00:16]} 38. Ng5 {[%emt 0:01:56]} (38. Bf1 $11 Rxe6 39. Rxe6 Bxe6 40. Nd6) 38... Rxa3 $15 {[%emt 0:00:26]} 39. Bf1 {[%emt 0:00:26]} ({White should try} 39. Ne4 $15) 39... Nf5 {[%emt 0:00:34]} ({Black should play} 39... Ra1 $1 40. Re5 Rf8) 40. e7 $17 {[%emt 0:00:51]} Nxe3 {[%emt 0:00:24]} (40... Re8 $1 $17 {[%cal Oa3a1] Strongly threatening ...Ra1!} 41. Re5 Nxg3 (41... Rxe7 42. Rxe7 Nxe7 43. Re3 $17) (41... Nxe7 42. Rd3 $14) 42. Rxd5 Rxe7 (42... Nxf1 $2 43. Rd8 $18) 43. hxg3 Rxc3) 41. Rxe3 $11 {[%emt 0:29:39]} Bc6 {[%emt 0:10:13]} (41... Raxc3 $2 42. Rxc3 (42. e8=R+ Rxe8 43. Rxe8+ Kg7 $18) 42... Re8 43. Rc7 $18) (41... Re8 $1 $11 {keeps the balance.} 42. Bb5 Bc6 43. Bc4+ Kg7) 42. Bc4+ {[%emt 0:00:00]} (42. Ne4 $16 {Nd6 would now be deadly.} Rb8 (42... Bxe4 43. Rxe4 Kf7 44. Bb5 $18) 43. Nd6) 42... Kg7 $11 {[%emt 0:01:04]} 43. Nf7 {[%emt 0:00:00]} Ra1+ {[%emt 0:00:56]} 44. Kf2 {[%emt 0:00:00]} b5 $2 {[%emt 0:10:25]} (44... Re8 $11 45. b5 (45. Nd6 Rd1 $18) 45... Bd7 (45... Bxb5 46. Bxb5 Kxf7 47. Rf3+ Kxe7 48. Re3+ Kd6 49. Bxe8 $16)) 45. Nd6 {[%emt 0:00:00]} (45. Bxb5 $1 $18 Rf1+ (45... Bxb5 $2 46. Nd6 $16) (45... Kxf7 $2 46. Bxc6 Re8 47. Rf3+ Kxe7 48. Re3+ Kd6 49. Bxe8 $18) 46. Bxf1 (46. Kxf1 $2 Bxb5+ 47. Kf2 Kxf7 $19) 46... Kxf7 47. Bc4+ Ke8 48. Bg8) 45... Rb8 $14 {[%emt 0:00:06]} 46. Be2 {[%emt 0:00:00]} Ra6 {[%emt 0:06:32]} 47. e8=Q {[%emt 0:00:00]} (47. e8=N+ Bxe8 48. Nxe8+ (48. Rxe8 Rxe8 49. Nxe8+ Kf8 $18) 48... Kg8) 47... Bxe8 {[%emt 0:00:02]} 48. Nxe8+ {[%emt 0:00:00]} (48. Rxe8 Rxe8 49. Nxe8+ Kf7 $16) 48... Kf7 {[%emt 0:00:25]} 49. Nc7 {[%emt 0:00:00]} Rf6+ {[%emt 0:00:05]} (49... Ra2 $16) 50. Kg3 {[%emt 0:00:00]} (50. Rf3 $1 $18) 50... a6 $16 {[%emt 0:00:57]} 51. Nd5 {[%emt 0:00:00]} Re6 {[%emt 0:00:52]} (51... Rd6 $14 52. Re7+ Kg8) 52. Rxe6 $1 $18 {[%emt 0:00:00]} Kxe6 {[%emt 0:00:01]} 53. Nc7+ {[%emt 0:00:00]} Kd6 {[%emt 0:00:48]} 54. Nxa6 {[%emt 0:00:00]} Re8 {[%emt 0:00:24] [#]} (54... Rc8 {might work better.}) 55. Kf2 $1 $18 {[%emt 0:00:00]} ({Don't take} 55. Bxb5 $6 Re3+ 56. Kf2 Rxc3 $16) 55... Rf8+ {[%emt 0:00:24]} 56. Bf3 {[%emt 0:00:00]} Rf4 {[%emt 0:02:21] [#]} (56... g5 $16 {was worth a try.} 57. Kg2 Re8) 57. Nc5 $1 $18 {[%emt 0:00:00]} Rh4 {[%emt 0:00:35]} 58. Kg2 {[%emt 0:00:00]} g5 {[%emt 0:01:27]} 59. Be2 {[%emt 0:00:00]} Kc6 {[%emt 0:00:17]} 60. Nb3 {[%emt 0:00:00]} Kb6 {[%emt 0:00:44]} 61. Nd4 {[%emt 0:00:00]} Re4 {[%emt 0:00:16]} 62. Bxb5 {[%emt 0:03:54]} h5 {[%emt 0:00:26]} 63. Be2 {[%emt 0:00:23]} ({Better is} 63. Bf1 $18) 63... g4 {[%emt 0:01:26]} (63... Re3 $16) 64. h3 $2 {[%emt 0:00:56]} (64. Kf2 $18 {aiming for Bd3.} h4 65. Bc4) 64... gxh3+ $11 {[%emt 0:01:06]} 65. Kxh3 {[%emt 0:00:02]} Re3+ {[%emt 0:00:07]} 66. Kh4 {[%emt 0:00:19]} Rxc3 {[%emt 0:00:10]} 67. Kxh5 {[%emt 0:00:30]} Re3 {[%emt 0:00:40]} 68. Bf1 {[%emt 0:03:03]} Re1 {[%emt 0:00:22]} 69. Bg2 {[%emt 0:00:57]} Rd1 {[%emt 0:01:36]} 70. Nc6 {[%emt 0:01:04]} Rc1 {[%emt 0:00:13]} 71. Kg4 {[%emt 0:01:02]} Rxc6 {[%emt 0:00:05]} 1/2-1/2